lending/lending_fUSD_20251016
["ID","MTS","AMOUNT","RATE_DAILY","PERIOD"]
[391539234,1760638232674,-871.90306189,0.00020809,2]
[391539235,1760638232684,-857.08,0.00021331,2]
[391539236,1760638232694,-2049.0,0.00021404,2]
[391539237,1760638232703,-539.307,0.00021404,2]
[391539238,1760638232713,-1000.08075437,0.0002181,2]
[391539239,1760638232722,-600.0,0.00021918,2]
[391539240,1760638232732,-2467.6758252,0.00022,2]
[391539242,1760638232741,-1373.81,0.00022358,2]
[391539243,1760638232751,-366.68234757,0.00022402,2]
[391539245,1760638232760,-6520.74003835,0.00022402,2]
[391539247,1760638232770,-7919.7741,0.00022402,2]
[391539249,1760638232780,-1000.0,0.00022402,2]
[391539251,1760638232789,-278.6331,0.00022402,2]
[391539253,1760638232799,-1000.0,0.00022402,2]
[391539255,1760638232808,-2500.0,0.00022402,2]
[391539257,1760638232817,-600.0,0.00022466,2]
[391539259,1760638232827,-722.87037448,0.00022479,2]
[391539261,1760638232836,-151.0,0.00022499,2]
[391539263,1760638232846,-200.0,0.00022502,2]
[391539265,1760638232855,-500.0,0.00022502,2]
[391539268,1760638232871,-500.0,0.00022502,2]
[391539269,1760638232880,-485.72163444,0.00022502,2]
[391539272,1760638232890,-151.0,0.00022502,2]
[391539273,1760638232900,-500.0,0.00022502,2]
[391539275,1760638232909,-500.0,0.00022502,2]
[391539277,1760638232919,-500.0,0.00022502,2]
[391539280,1760638232928,-1052.5257,0.00022502,2]
[391539281,1760638232938,-151.0,0.00022502,2]
[391539284,1760638232948,-160.0,0.00022502,2]
[391539285,1760638232957,-821.0,0.00022502,2]
[391539288,1760638232967,-821.0,0.00022502,2]
[391539290,1760638232977,-821.0,0.00022502,2]
[391539291,1760638232987,-821.0,0.00022502,2]
[391539294,1760638232996,-821.0,0.00022502,2]
[391539296,1760638233007,-158985.55707678,0.00022502,2]
[391539327,1760638234064,-17959.70963491,0.00022502,2]
[391539328,1760638234077,-14549.97044838,0.00022502,2]
[391539329,1760638234087,-304.69,0.00022502,2]
[391539330,1760638234097,-261.28,0.00022549,2]
[391539331,1760638234107,-250.0,0.00022549,2]
[391539332,1760638234119,-250.0,0.00022549,2]
[391539333,1760638234128,-250.0,0.00022549,2]
[391539334,1760638234138,-250.0,0.00022549,2]
[391539335,1760638234148,-250.0,0.00022549,2]
[391539336,1760638234157,-250.0,0.00022549,2]
[391539337,1760638234167,-5720.99516668,0.00022549,2]
[391539338,1760638234179,-3831.17269879,0.00022549,2]
[391539339,1760638234189,-250.0,0.00022549,2]
[391539340,1760638234198,-250.0,0.00022549,2]
[391539341,1760638234208,-250.0,0.00022549,2]
[391539342,1760638234218,-250.0,0.00022549,2]
[391539343,1760638234227,-250.0,0.00022549,2]
[391539344,1760638234237,-250.0,0.00022549,2]
[391539345,1760638234247,-250.0,0.00022549,2]
[391539346,1760638234257,-250.0,0.00022549,2]
[391539347,1760638234267,-1000.0,0.00022549,2]
[391539348,1760638234277,-250.0,0.00022549,2]
[391539349,1760638234287,-250.0,0.00022549,2]
[391539350,1760638234297,-871.48857578,0.00022549,2]
[391539351,1760638234309,-250.0,0.00022549,2]
[391539352,1760638234318,-250.0,0.00022549,2]
[391539353,1760638234328,-250.0,0.00022549,2]
[391539354,1760638234339,-250.0,0.00022549,2]
[391539355,1760638234348,-250.0,0.00022549,2]
[391539356,1760638234358,-250.0,0.00022549,2]
[391539357,1760638234369,-1000.0,0.00022549,2]
[391539358,1760638234379,-250.0,0.00022549,2]
[391539359,1760638234390,-250.0,0.00022549,2]
[391539360,1760638234400,-250.0,0.00022549,2]
[391539361,1760638234410,-250.0,0.00022549,2]
[391539362,1760638234419,-250.0,0.00022549,2]
[391539363,1760638234428,-250.0,0.00022549,2]
[391539364,1760638234437,-250.0,0.00022549,2]
[391539365,1760638234447,-250.0,0.00022549,2]
[391539366,1760638234456,-250.0,0.00022549,2]
[391539367,1760638234465,-277.35679052,0.00022549,2]
[391539368,1760638234474,-250.0,0.00022549,2]
[391539369,1760638234484,-250.0,0.00022549,2]
[391539370,1760638234493,-250.0,0.00022549,2]
[391539371,1760638234502,-250.0,0.00022549,2]
[391539372,1760638234511,-250.0,0.00022549,2]
[391539373,1760638234520,-250.0,0.00022549,2]
[391539374,1760638234529,-250.0,0.00022549,2]
[391539375,1760638234538,-250.0,0.00022549,2]
[391539376,1760638234547,-250.0,0.00022549,2]
[391539377,1760638234556,-7103.44445635,0.00022604,2]
[391539378,1760638234566,-166.66,0.00022677,30]
[391539379,1760638234575,-1128.69543902,0.00022811,2]
[391539380,1760638234584,-261.28,0.00022823,2]
[391539381,1760638234594,-5654.64651561,0.00022914,2]
[391539382,1760638234603,-1224.56,0.00022991,2]
[391539383,1760638234613,-1106.641,0.00023,2]
[391539384,1760638234623,-600.0,0.00023014,2]
[391539385,1760638234632,-1000.0,0.00023016,2]
[391539386,1760638234641,-261.28,0.00023097,2]
[391539387,1760638234651,-166.66,0.00023126,30]
[391539388,1760638234660,-6520.74003828,0.00023179,2]
[391539389,1760638234669,-500.0,0.00023299,2]
[391539390,1760638234679,-42987.09564106,0.000233,2]
[391539391,1760638234690,-2934.06180605,0.000233,2]
[391539392,1760638234701,-6950.65098903,0.000233,2]
[391539393,1760638234712,-580.073501,0.000233,2]
[391539394,1760638234723,-2300.0,0.000233,2]
[391539395,1760638234734,-6320.73743238,0.000233,2]
[391539396,1760638234745,-3579.27152944,0.000233,2]
[391539397,1760638234756,-5700.12725098,0.000233,2]
[391539398,1760638234774,-21409.82423689,0.000233,2]
[391539399,1760638234785,-401.77271717,0.000233,2]
[391539400,1760638234796,-568.63769063,0.000233,2]
[391539401,1760638237815,-882.9,0.00020778,2]
[391539402,1760638237825,-1000.0,0.00022402,2]
[391539403,1760638237834,-151.0,0.00022549,2]
[391539404,1760638237844,-16445.64570537,0.000233,2]
[391539405,1760638237855,-787.79,0.00023301,30]
[391539406,1760638237867,-261.28,0.00023371,2]
[391539407,1760638237877,-2000.0,0.000234,2]
[391539408,1760638237887,-152.0,0.00023485,3]
[391539409,1760638237897,-600.0,0.00023562,2]
[391539410,1760638237906,-166.66,0.00023575,30]
[391539411,1760638237916,-366.68234753,0.00023577,2]
[391539412,1760638237926,-546.62,0.0002359,2]
[391539413,1760638237935,-413.59,0.0002359,2]
[391539414,1760638237946,-167.95,0.0002359,2]
[391539415,1760638237955,-174.83,0.0002359,2]
[391539416,1760638237965,-546.62,0.0002359,2]
[391539417,1760638237975,-413.59,0.0002359,2]
[391539418,1760638237985,-5654.64651554,0.00023635,2]
[391539419,1760638237994,-261.3,0.00023645,2]
[391539420,1760638238004,-172.659399,0.00023654,2]
[391539421,1760638238015,-168.0,0.00023711,2]
[391539422,1760638238025,-2751.0,0.00023809,2]
[391539423,1760638238035,-157.09,0.00023809,2]
[391539424,1760638238044,-1257.69959948,0.00023813,2]
[391539425,1760638238054,-988.75,0.00023836,2]
[391539426,1760638238064,-5000.0,0.00023902,2]
[391539427,1760638238074,-6520.74003828,0.00023957,2]
[391539428,1760638238083,-1000.0,0.000241,2]
[391539429,1760638238093,-600.0,0.0002411,2]
[391539430,1760638238102,-936.05749562,0.00024152,2]
[391539431,1760638238113,-3611.61,0.00024174,2]
[391539432,1760638238123,-24618.5421704,0.00024197,2]
[391539433,1760638238135,-123851.31069127,0.00024197,2]
[391539434,1760638238145,-564.09339364,0.00024199,2]
[391539435,1760638238155,-102049.59591521,0.000242,3]
[391539436,1760638238167,-1240.66059968,0.000242,3]
[391539437,1760638238178,-5739.3692,0.000242,3]
[391539438,1760638238190,-3206.39999943,0.000242,3]
[391539439,1760638238201,-981.36511929,0.000242,3]
[391539440,1760638238212,-415.72814828,0.000242,3]
[391539441,1760638238228,-650.76130567,0.000242,3]
[391539442,1760638238240,-2236.15161047,0.000242,3]
[391539443,1760638238251,-655.26476,0.000242,3]
[391539444,1760638238263,-407.603,0.000242,3]
[391539445,1760638238274,-16065.4587627,0.000242,3]
[391539446,1760638238286,-20249.999986,0.000242,3]
[391539574,1760638239884,-1728.591437,0.000242,3]
[391539576,1760638239896,-868.14495538,0.000242,3]
[391539578,1760638239908,-107280.35986263,0.000242,3]
[391539580,1760638239918,-5654.64651554,0.00024355,2]
[391539582,1760638239927,-168.22,0.00024413,2]
[391539584,1760638239937,-1052.5257,0.00024502,2]
[391539586,1760638239946,-1199.33,0.00024519,2]
[391539588,1760638239956,-5526.20234134,0.000246,2]
[391539590,1760638239966,-500.0,0.0002465,2]
[391539592,1760638239975,-200.0,0.0002465,2]
[391539594,1760638239985,-563.09128515,0.00024657,10]
[391539596,1760638239994,-154.0,0.00024658,2]
[391539598,1760638240004,-154.0,0.00024658,2]
[391539600,1760638240013,-422.79,0.00024658,2]
[391539602,1760638240022,-1000.0,0.00024658,2]
[391539603,1760638240032,-600.0,0.00024658,2]
[391539605,1760638240041,-6520.74003828,0.00024734,2]
[391539607,1760638240050,-366.68234753,0.00024753,2]
[391539609,1760638240063,-514.93363163,0.00024789,2]
[391539611,1760638240073,-552.53660212,0.00024789,2]
[391539613,1760638240082,-218.26,0.00024789,2]
[391539615,1760638240091,-500.0,0.00024789,2]
[391539617,1760638240101,-177.45387446,0.0002479,2]
[391539618,1760638240110,-275.05425618,0.0002479,2]
[391539620,1760638240121,-150.98,0.0002479,2]
[391539622,1760638240131,-215.48191187,0.0002479,2]
[391539624,1760638240140,-19733.48899564,0.0002479,3]
[391539626,1760638240152,-9528.97510143,0.0002479,3]
[391539631,1760638240191,-2357.9063437,0.0002479,3]
[391539633,1760638240203,-1184.7,0.0002479,3]
[391539638,1760638240240,-3549.91432178,0.0002479,3]
[391539640,1760638240251,-1719.3985112,0.0002479,3]
[391539642,1760638240262,-1956.67464032,0.0002479,3]
[391539644,1760638240274,-687.00000082,0.0002479,3]
[391539646,1760638240286,-2240.55432072,0.0002479,3]
[391539648,1760638240300,-3997.44866322,0.0002479,3]
[391539699,1760638243049,-901.0,0.00020778,2]
[391539700,1760638243060,-294.73892596,0.00023201,2]
[391539701,1760638243070,-76.26225812,0.00024734,2]
[391539702,1760638243320,-841.6867528,0.00024734,2]
[391539703,1760638243333,-1040.05098908,0.00024734,2]
[391539704,1760638243343,-5674.66000117,0.0002479,3]
[391539705,1760638243352,-500.0,0.00024799,2]
[391539706,1760638243362,-500.0,0.00024799,2]
[391539707,1760638243380,-500.0,0.00024799,2]
[391539708,1760638243389,-500.0,0.00024799,2]
[391539709,1760638243399,-151.0,0.000248,7]
[391539710,1760638243409,-151.0,0.000248,7]
[391539711,1760638243419,-151.0,0.000248,7]
[391539712,1760638243429,-151.0,0.000248,7]
[391539713,1760638243438,-151.0,0.000248,7]
[391539714,1760638243447,-151.0,0.000248,7]
[391539715,1760638243457,-151.0,0.000248,7]
[391539716,1760638243466,-188.978806,0.000248,7]
[391539717,1760638243475,-255.796976,0.000248,7]
[391539718,1760638243485,-151.0,0.000248,7]
[391539719,1760638243494,-252952.78974786,0.000248,3]
[391539720,1760638243507,-253.480003,0.000248,3]
[391539721,1760638243518,-27451.4092867,0.000248,3]
[391539722,1760638243544,-9523.99957396,0.000248,3]
[391539794,1760638245910,-305.55,0.00020778,2]
[391539795,1760638245920,-294.73892594,0.00024026,2]
[391539796,1760638245930,-6167.67838649,0.000248,3]
[391539797,1760638245970,-11811.8,0.000248,3]
[391539798,1760638245981,-4264.0,0.000248,3]
[391539799,1760638245994,-1961.05030161,0.000248,3]
[391539800,1760638246081,-23645.622,0.000248,3]
[391539801,1760638246255,-19780.75919038,0.000248,3]
[391539802,1760638246265,-151.0,0.000248,7]
[391539803,1760638246275,-163.994422,0.000248,7]
[391539804,1760638246284,-163.994422,0.000248,7]
[391539805,1760638246295,-163.994422,0.000248,7]
[391539806,1760638246310,-151.0,0.000248,7]
[391539807,1760638246321,-300.546391,0.000248,7]
[391539809,1760638246331,-163.994422,0.000248,7]
[391539811,1760638246340,-151.0,0.000248,7]
[391539813,1760638246351,-300.546391,0.000248,7]
[391539814,1760638246361,-300.546391,0.000248,7]
[391539815,1760638246373,-300.546391,0.000248,7]
[391539816,1760638246383,-151.0,0.000248,7]
[391539817,1760638246393,-151.0,0.000248,7]
[391539818,1760638246402,-151.0,0.000248,7]
[391539819,1760638246411,-151.0,0.000248,7]
[391539820,1760638246421,-151.0,0.000248,7]
[391539821,1760638246430,-151.0,0.000248,7]
[391539822,1760638246439,-151.0,0.000248,7]
[391539823,1760638246448,-151.0,0.000248,7]
[391539824,1760638246458,-151.0,0.000248,7]
[391539825,1760638246467,-151.0,0.000248,7]
[391539826,1760638246476,-151.0,0.000248,7]
[391539827,1760638246486,-151.0,0.000248,7]
[391539828,1760638246495,-151.0,0.000248,7]
[391539829,1760638246504,-151.0,0.000248,7]
[391539830,1760638246514,-151.0,0.000248,7]
[391539831,1760638246523,-193.783778,0.000248,7]
[391539832,1760638246532,-151.0,0.000248,7]
[391539833,1760638246541,-222.523661,0.000248,7]
[391539834,1760638246550,-151.0,0.000248,7]
[391539835,1760638246559,-151.0,0.000248,7]
[391539836,1760638246568,-151.0,0.000248,7]
[391539837,1760638246577,-151.0,0.000248,7]
[391539838,1760638246586,-305.563792,0.000248,7]
[391539839,1760638246595,-305.563792,0.000248,7]
[391539840,1760638246604,-151.0,0.000248,7]
[391539841,1760638246614,-305.563792,0.000248,7]
[391539842,1760638246626,-151.0,0.000248,7]
[391539843,1760638246635,-261.73614915,0.000248,7]
[391539844,1760638246647,-43.82764285,0.000248,7]
[391539845,1760638246655,-151.0,0.000248,7]
[391539846,1760638246665,-151.0,0.000248,7]
[391539847,1760638246674,-232.488297,0.000248,7]
[391539848,1760638246684,-151.0,0.000248,7]
[391539849,1760638246693,-152.485098,0.000248,7]
[391539850,1760638246703,-152.168195,0.000248,7]
[391539851,1760638246712,-152.13996465,0.000248,7]
[391539852,1760638246724,-0.34513335,0.000248,7]
[391539853,1760638246734,-205.26186,0.000248,7]
[391539854,1760638246743,-152.485098,0.000248,7]
[391539855,1760638246752,-205.26186,0.000248,7]
[391539856,1760638246761,-152.485098,0.000248,7]
[391539857,1760638246770,-205.26186,0.000248,7]
[391539858,1760638246779,-151.0,0.000248,7]
[391539859,1760638246789,-205.26186,0.000248,7]
[391539860,1760638246798,-151.0,0.000248,7]
[391539861,1760638246807,-151.0,0.000248,7]
[391539862,1760638246816,-151.0,0.000248,7]
[391539863,1760638246826,-151.0,0.000248,7]
[391539864,1760638246835,-151.0,0.000248,7]
[391539865,1760638246845,-151.0,0.000248,7]
[391539866,1760638246855,-151.0,0.000248,7]
[391539867,1760638246864,-151.0,0.000248,7]
[391539868,1760638246876,-218.55433,0.000248,7]
[391539869,1760638246885,-567.812672,0.000248,7]
[391539870,1760638246895,-151.0,0.000248,7]
[391539871,1760638246904,-567.812672,0.000248,7]
[391539872,1760638246914,-276.419314,0.000248,7]
[391539873,1760638246924,-567.812672,0.000248,7]
[391539874,1760638246933,-567.812672,0.000248,7]
[391539875,1760638246943,-2.41289865,0.000248,7]
[391539990,1760639432113,-476.96,0.00013699,2]
[391539991,1760639432123,-1890.405,0.00013932,2]
[391539992,1760639432232,-609.595,0.00013932,2]
[391539993,1760639432244,-201.02373801,0.00014065,2]
[391539994,1760639432254,-893.57832831,0.00014165,2]
[391539995,1760639432265,-305.15013849,0.00014265,2]
[391539996,1760639432275,-2745.677962,0.00014318,2]
[391539997,1760639432284,-1200.0,0.00014389,2]
[391539998,1760639432294,-300.0,0.00014389,2]
[391539999,1760639432305,-300.0,0.00014389,2]
[391540000,1760639432316,-300.0,0.00014389,2]
[391540001,1760639432327,-3195.43980829,0.0001439,2]
[391540002,1760639432336,-1320.273,0.000147,2]
[391540003,1760639432346,-1000.0,0.00014932,2]
[391540004,1760639432355,-1000.0,0.00014932,2]
[391540005,1760639432364,-302.293,0.00014932,2]
[391540006,1760639432374,-150.0,0.00014967,2]
[391540007,1760639432383,-3127.74444866,0.00014968,2]
[391540008,1760639432395,-869.2999,0.00014968,2]
[391540009,1760639432409,-3551.13697459,0.00014968,2]
[391540010,1760639432418,-266.55575927,0.00014968,2]
[391540011,1760639432430,-229.17646725,0.00014968,2]
[391540012,1760639432439,-6265.99969612,0.00014968,2]
[391540013,1760639432451,-320.076,0.00014968,2]
[391540015,1760639432462,-544.02,0.00014968,2]
[391540017,1760639432473,-441.00367211,0.00014968,2]
[391540019,1760639432484,-1351.07739581,0.00014968,2]
[391540021,1760639432493,-500.0,0.00014973,2]
[391540023,1760639432503,-246.657865,0.00014999,2]
[391540024,1760639432512,-421.45142492,0.00014999,2]
[391540026,1760639432521,-500.0,0.00014999,2]
[391540028,1760639432531,-500.0,0.00014999,2]
[391540030,1760639432540,-503.63545314,0.00014999,2]
[391540032,1760639432549,-500.0,0.00014999,2]
[391540034,1760639432559,-500.0,0.00014999,2]
[391540035,1760639432568,-500.0,0.00014999,2]
[391540036,1760639432578,-500.0,0.00014999,2]
[391540037,1760639432588,-500.0,0.00014999,2]
[391540038,1760639432598,-250.0,0.00014999,2]
[391540039,1760639432607,-500.0,0.00014999,2]
[391540040,1760639432617,-500.0,0.00014999,2]
[391540041,1760639432627,-500.0,0.00014999,2]
[391540042,1760639432636,-500.0,0.00014999,2]
[391540043,1760639432647,-273.14772663,0.00014999,2]
[391540044,1760639432656,-500.0,0.00014999,2]
[391540045,1760639432671,-500.0,0.00014999,2]
[391540046,1760639432681,-500.0,0.00014999,2]
[391540047,1760639432690,-500.0,0.00014999,2]
[391540048,1760639432699,-500.0,0.00014999,2]
[391540049,1760639432710,-500.0,0.00014999,2]
[391540050,1760639432719,-500.0,0.00014999,2]
[391540051,1760639432729,-500.0,0.00014999,2]
[391540052,1760639432738,-500.0,0.00014999,2]
[391540053,1760639432750,-177.152597,0.00014999,2]
[391540054,1760639432759,-500.0,0.00014999,2]
[391540055,1760639432769,-500.0,0.00014999,2]
[391540056,1760639432778,-380993.19482258,0.00015,2]
[391540057,1760639432789,-22706.61277222,0.00015,2]
[391540071,1760639438084,-22885.0,0.00015,2]
[391540264,1760639440170,-373.5644,0.00015,2]
[391540271,1760639440223,-1422.4145,0.00015,2]
[391540273,1760639440236,-340097.76143294,0.00015,2]
[391540285,1760639440438,-87481.00546863,0.00015,2]
[391540298,1760639440551,-572595.0,0.00015,2]
[391540559,1760639443176,-702.0793745,0.0001499,2]
[391540560,1760639443186,-2436.6605755,0.00015,2]
[391540565,1760639443282,-544.30471402,0.00015,2]
[391540567,1760639443294,-547.925209,0.00015,2]
[391540569,1760639443305,-5499.23833581,0.00015,2]
[391540571,1760639443317,-3652.600003,0.00015,2]
[391540572,1760639443331,-10671.74358992,0.00015,2]
[391540578,1760639446202,-15779.11089671,0.00015,2]
[391540579,1760639446260,-1745.27431316,0.00015,2]
[391540580,1760639446272,-526.70851846,0.00015,2]
[391540581,1760639446318,-77910.15998268,0.00015,2]
[391540715,1760640636879,-195.0,0.00014892,2]
[391540716,1760640636889,-300.0,0.00014899,2]
[391540717,1760640636900,-333.644,0.00014899,2]
[391540718,1760640636914,-866.356,0.00014899,2]
[391540719,1760640636923,-300.0,0.00014899,2]
[391540720,1760640636932,-6793.36319097,0.000149,2]
[391540721,1760640636942,-200.5294088,0.000149,2]
[391540722,1760640636951,-11329.21520762,0.000149,2]
[391540723,1760640636960,-500.0,0.00014973,2]
[391540724,1760640636969,-500.0,0.00014973,2]
[391540725,1760640636979,-500.0,0.00014973,2]
[391540726,1760640636989,-500.0,0.00014973,2]
[391540727,1760640636999,-500.0,0.00014973,2]
[391540728,1760640637009,-150.0,0.0001499,2]
[391540729,1760640637021,-200.0,0.00014991,2]
[391540730,1760640637030,-151.0,0.00014991,2]
[391540731,1760640637040,-151.0,0.00014991,2]
[391540732,1760640637049,-151.0,0.00014991,2]
[391540733,1760640637059,-151.0,0.00014991,2]
[391540734,1760640637068,-151.0,0.00014991,2]
[391540735,1760640637079,-151.0,0.00014991,2]
[391540736,1760640637092,-151.0,0.00014991,2]
[391540737,1760640637101,-151.0,0.00014991,2]
[391540738,1760640637112,-151.0,0.00014991,2]
[391540739,1760640637123,-151.0,0.00014991,2]
[391540740,1760640637132,-151.0,0.00014991,2]
[391540741,1760640637142,-151.0,0.00014991,2]
[391540742,1760640637152,-151.0,0.00014991,2]
[391540743,1760640637163,-151.0,0.00014991,2]
[391540744,1760640637173,-151.0,0.00014991,2]
[391540745,1760640637183,-151.0,0.00014991,2]
[391540746,1760640637193,-151.0,0.00014991,2]
[391540748,1760640637203,-151.0,0.00014991,2]
[391540749,1760640637213,-151.0,0.00014991,2]
[391540750,1760640637225,-151.0,0.00014991,2]
[391540751,1760640637235,-151.0,0.00014991,2]
[391540752,1760640637245,-151.0,0.00014991,2]
[391540753,1760640637255,-151.0,0.00014991,2]
[391540754,1760640637265,-151.0,0.00014991,2]
[391540755,1760640637274,-151.0,0.00014991,2]
[391540756,1760640637283,-151.0,0.00014991,2]
[391540758,1760640637293,-151.0,0.00014991,2]
[391540760,1760640637304,-151.0,0.00014991,2]
[391540762,1760640637313,-151.0,0.00014991,2]
[391540764,1760640637322,-151.0,0.00014991,2]
[391540766,1760640637332,-151.0,0.00014991,2]
[391540768,1760640637342,-200.0,0.00014991,2]
[391540769,1760640637352,-1002.44033433,0.00014999,2]
[391540770,1760640637362,-8020.53606386,0.00014999,2]
[391540771,1760640637371,-11608.15353442,0.00015,2]
[391540772,1760640637396,-336.6062475,0.00014907,2]
[391540773,1760640637406,-11319.85979638,0.00015,2]
[391540774,1760640637417,-2920.00004,0.00015,2]
[391540776,1760640638261,-3543.8996,0.00015,2]
[391540777,1760640638319,-377.8,0.00015,2]
[391540778,1760640638370,-492.6553206,0.00015,2]
[391540779,1760640638383,-2168.36475445,0.00015,2]
[391540964,1760640640235,-1227.3280601,0.00015,2]
[391540966,1760640640247,-13155.45666968,0.00015,2]
[391540968,1760640640259,-330.76879793,0.00015,2]
[391540971,1760640640270,-1084.5,0.00015,2]
[391540973,1760640640282,-1928.78484605,0.00015,2]
[391540975,1760640640293,-700.0,0.00015,2]
[391540977,1760640640304,-105589.88329835,0.00015,2]
[391540979,1760640640316,-54489.62286997,0.00015,2]
[391540981,1760640640325,-117367.16665842,0.00015,2]
[391540983,1760640640335,-8577.4347214,0.00015,2]
[391540985,1760640640344,-4398.1649982,0.00015,2]
[391540987,1760640640353,-489.8764758,0.00015,2]
[391540989,1760640640363,-311.7639816,0.00015,2]
[391540991,1760640640373,-3722.90597,0.00015,2]
[391540994,1760640640383,-2748.4860871,0.00015,2]
[391540996,1760640640393,-3206.285891,0.00015,2]
[391540998,1760640640402,-79020.1488369,0.00015,2]
[391541000,1760640640412,-994.48,0.00015007,2]
[391541002,1760640640421,-150.0,0.0001501,2]
[391541004,1760640640430,-150.0,0.0001501,2]
[391541006,1760640640440,-251.64880541,0.0001501,2]
[391541008,1760640640450,-150.0,0.0001501,2]
[391541010,1760640640459,-254.84930619,0.0001501,2]
[391541012,1760640640468,-251.88543427,0.0001501,2]
[391541014,1760640640481,-150.0,0.0001501,2]
[391541016,1760640640491,-500.0,0.0001501,2]
[391541018,1760640640500,-150.0,0.0001501,2]
[391541020,1760640640510,-150.0,0.0001501,2]
[391541022,1760640640519,-150.0,0.0001501,2]
[391541023,1760640640528,-500.0,0.0001501,2]
[391541024,1760640640537,-448.64,0.0001501,2]
[391541025,1760640640546,-150.0,0.00015065,2]
[391541026,1760640640555,-150.0,0.00015065,2]
[391541027,1760640640564,-150.0,0.00015065,2]
[391541028,1760640640574,-150.0,0.00015065,2]
[391541029,1760640640583,-500.0,0.00015065,2]
[391541030,1760640640592,-150.0,0.00015065,2]
[391541031,1760640640601,-500.0,0.00015065,2]
[391541032,1760640640611,-150.0,0.0001512,2]
[391541033,1760640640620,-150.0,0.0001512,2]
[391541035,1760640640629,-150.0,0.0001512,2]
[391541037,1760640640638,-200.0,0.0001512,2]
[391541039,1760640640648,-300.0,0.0001512,2]
[391541041,1760640640657,-200.0,0.0001512,2]
[391541043,1760640640667,-384.38831943,0.0001512,2]
[391541045,1760640640676,-150.0,0.00015174,2]
[391541047,1760640640686,-200.0,0.00015229,2]
[391541049,1760640640695,-500.0,0.00015521,2]
[391541052,1760640640705,-500.0,0.00015521,2]
[391541054,1760640640714,-500.0,0.00015521,2]
[391541055,1760640640724,-500.0,0.00015579,2]
[391541058,1760640640733,-236.71468331,0.00015968,2]
[391541060,1760640640743,-1010.0,0.00016174,2]
[391541062,1760640640752,-291.77552313,0.00016282,2]
[391541064,1760640640761,-235.0,0.00016308,2]
[391541066,1760640640771,-300.0,0.00016374,2]
[391541068,1760640640780,-300.0,0.00016374,2]
[391541070,1760640640789,-302.57927306,0.00016374,2]
[391541072,1760640640799,-352.76403651,0.00016374,2]
[391541075,1760640640808,-300.0,0.00016374,2]
[391541078,1760640640818,-195.0,0.00016374,2]
[391541080,1760640640828,-2500.0,0.00016374,2]
[391541083,1760640640837,-250.0,0.00016374,2]
[391541086,1760640640846,-300.0,0.00016374,2]
[391541089,1760640640855,-250.0,0.00016374,2]
[391541092,1760640640865,-300.0,0.00016381,2]
[391541094,1760640640875,-150.0,0.00016389,2]
[391541096,1760640640884,-150.00000016,0.00016389,2]
[391541098,1760640640893,-150.0,0.00016389,2]
[391541100,1760640640902,-500.0,0.00016389,2]
[391541102,1760640640911,-500.0,0.00016389,2]
[391541103,1760640640922,-150.48277132,0.00016389,2]
[391541105,1760640640932,-150.0,0.00016389,2]
[391541107,1760640640941,-150.0,0.00016389,2]